bitfinex-derivatives/quotes_SOLF0:USTF0_20260227
["timestamp","ask_amount","ask_price","bid_price","bid_amount"]
[1772205096915,21.97174784,83.031,82.97,28.1855272]
[1772205097114,21.97174784,83.031,82.971,21.84363386]
[1772205097319,21.97174784,83.049,82.974,21.84363386]
[1772205097917,21.97174784,83.049,82.976,21.84363386]
[1772205098108,21.6619,83.085,82.976,21.84363386]
[1772205098109,21.97174784,83.046,82.976,21.84363386]
[1772205099013,21.97174784,83.046,82.977,10.8448]
[1772205099317,21.45003581,83.039,82.959,22.54498364]
[1772205099616,10.8397,83.018,82.962,22.54498364]
[1772205100015,21.16555368,83.056,82.962,22.54498364]
[1772205100220,21.16555368,83.056,82.97,28.05872133]
[1772205100616,10.8398,83.017,82.97,21.71682799]
[1772205101019,21.16555368,83.017,82.951,21.71682799]
[1772205101214,21.16555368,83.017,82.954,21.71682799]
[1772205102516,10.8428,82.993,82.942,10.8494]
[1772205102715,21.16555368,82.998,82.942,10.8494]
[1772205102916,21.16555368,82.998,82.942,32.56622799]
[1772205103622,21.16555368,82.998,82.943,21.71682799]
[1772205104013,10.8438,82.986,82.943,21.71682799]
[1772205105118,10.8448,82.978,82.943,21.71682799]
[1772205105818,6.34189334,83.03,82.925,21.71682799]
[1772205105819,21.16555368,82.981,82.925,21.71682799]
[1772205106424,21.16555368,82.981,82.915,460.86345507]
[1772205106619,21.16555368,82.981,82.908,21.71682799]
[1772205107320,10.848,82.954,82.909,10.8537]
[1772205107518,21.16555368,82.981,82.892,21.71682799]
[1772205107718,10.8498,82.94,82.893,10.8558]
[1772205107919,21.16555368,82.953,82.893,10.8558]
[1772205108124,21.16555368,82.953,82.894,21.71682799]
[1772205108325,10.8496,82.942,82.895,10.8555]
[1772205108925,21.16555368,82.975,82.896,21.71682799]
[1772205110024,10.8478,82.955,82.907,10.854]
[1772205110229,21.16555368,82.975,82.907,10.854]
[1772205110427,21.16555368,82.992,82.911,21.71682799]
[1772205110728,10.8447,82.979,82.926,10.8515]
[1772205110928,10.8447,82.979,82.927,21.71682799]
[1772205111326,21.16555368,83.011,82.941,21.71682799]
[1772205111524,21.16555368,83.011,82.95,6.34189334]
[1772205111718,21.16555368,83.011,82.951,21.71682799]
[1772205112121,10.8415,83.004,82.951,21.71682799]
[1772205112322,21.16555368,83.011,82.951,21.71682799]
[1772205113231,10.8425,82.996,82.951,21.71682799]
[1772205115027,10.8413,83.005,82.953,10.848]
[1772205115229,21.16555368,83.011,82.951,21.71682799]
[1772205115831,10.8431,82.991,82.951,21.71682799]
[1772205117035,10.8441,82.984,82.951,21.71682799]
[1772205117737,10.8451,82.976,82.932,21.71682799]
[1772205117935,10.8451,82.976,82.867,29.39068935]
[1772205117936,21.16555368,82.994,82.914,21.71682799]
[1772205118435,10.848,82.954,82.914,21.71682799]
[1772205119232,10.8469,82.962,82.914,21.71682799]
[1772205119432,21.16555368,82.976,82.914,21.71682799]
[1772205119633,21.16555368,82.976,82.891,21.71682799]
[1772205119828,10.8478,82.955,82.891,21.71682799]
[1772205120036,21.16555368,82.976,82.891,21.71682799]
[1772205120732,21.16555368,82.976,82.899,21.71682799]
[1772205120940,21.16555368,82.973,82.885,21.71682799]
[1772205121235,21.16555368,82.95,82.89,10.8563]
[1772205121435,21.16555368,82.95,82.891,21.71682799]
[1772205121837,21.16555368,82.95,82.868,21.71682799]
[1772205122335,21.16555368,82.95,82.893,21.71682799]
[1772205123334,21.16555368,82.95,82.871,21.71682799]
[1772205123534,21.16555368,82.95,82.884,10.857]
[1772205123744,21.16555368,82.95,82.871,21.71682799]
[1772205123940,10.8522,82.922,82.871,21.71682799]
[1772205124137,21.16555368,82.933,82.871,21.71682799]
[1772205124436,21.16555368,82.933,82.857,21.71682799]
[1772205124639,10.8544,82.905,82.858,10.8605]
[1772205125134,10.8544,82.905,82.858,32.57732799]
[1772205126241,10.8544,82.905,82.85,6.34189334]
[1772205126242,21.16555368,82.896,82.838,21.71682799]
[1772205126447,21.16555368,82.896,82.821,21.71682799]
[1772205126745,10.8587,82.872,82.821,21.71682799]
[1772205126938,21.16555368,82.879,82.79,6.34189334]
[1772205127137,21.16555368,82.879,82.792,21.71682799]
[1772205127732,21.16555368,82.879,82.811,21.71682799]
[1772205127938,10.8598,82.864,82.811,21.71682799]
[1772205128139,21.16555368,82.879,82.811,21.71682799]
[1772205128334,21.16555368,82.879,82.812,10.8665]
[1772205128535,21.16555368,82.879,82.811,21.71682799]
[1772205128536,10.8596,82.865,82.811,21.71682799]
[1772205128938,10.8596,82.865,82.811,32.58342799]
[1772205129534,10.8596,82.865,82.811,21.71682799]
[1772205132339,10.8609,82.855,82.811,21.71682799]
[1772205132539,10.8609,82.855,82.79,6.34189334]
[1772205132540,20.8772062,82.855,82.793,20.78980933]
[1772205132940,20.8772062,82.845,82.779,20.78980933]
[1772205133934,10.8647,82.827,82.779,20.78980933]
[1772205135140,10.8657,82.819,82.779,20.78980933]
[1772205135548,20.8772062,82.845,82.779,20.78980933]
[1772205137054,10.8644,82.828,82.779,20.78980933]
[1772205137647,10.8655,82.82,82.779,20.78980933]
[1772205138046,20.8772062,82.845,82.779,20.78980933]
[1772205138452,10.8654,82.821,82.779,20.78980933]
[1772205140049,20.8772062,82.845,82.779,20.78980933]
[1772205140243,20.8772062,82.845,82.781,20.78980933]
[1772205140244,10.8643,82.83,82.781,20.78980933]
[1772205140556,20.8772062,82.839,82.748,20.78980933]
[1772205141455,20.8772062,82.818,82.758,20.78980933]
[1772205142348,10.8675,82.805,82.758,20.78980933]
[1772205142546,20.8772062,82.818,82.74,6.35830843]
[1772205142547,20.8772062,82.818,82.742,20.78980933]
[1772205142945,20.8772062,82.789,82.726,20.78980933]
[1772205143758,10.8712,82.777,82.729,31.66710933]
[1772205143951,20.8772062,82.789,82.73,20.78980933]
[1772205145155,20.8772062,82.789,82.646,169.3749]
[1772205145156,20.8772062,82.749,82.651,20.78980933]
[1772205145556,20.8772062,82.737,82.663,20.78980933]
[1772205146461,20.8772062,82.737,82.665,20.78980933]
[1772205147556,31.7536062,82.737,82.671,20.78980933]
[1772205149261,20.8772062,82.726,82.671,20.78980933]
[1772205150257,10.878,82.725,82.671,20.78980933]
[1772205151262,10.8765,82.737,82.671,20.78980933]
[1772205151755,10.8749,82.748,82.674,20.78980933]
[1772205152157,20.8772062,82.747,82.674,20.78980933]
[1772205152760,10.8759,82.741,82.676,20.78980933]
[1772205153957,10.8744,82.752,82.679,20.78980933]
[1772205154259,10.8744,82.752,82.691,20.78980933]
[1772205154652,10.8754,82.745,82.691,20.78980933]
[1772205155662,6.35830843,82.77,82.651,20.78980933]
[1772205155663,20.8772062,82.744,82.651,20.78980933]
[1772205156265,20.8772062,82.729,82.651,20.78980933]
[1772205156466,10.8788,82.719,82.651,20.78980933]
[1772205156664,20.8772062,82.718,82.651,20.78980933]
[1772205157867,20.8772062,82.735,82.663,20.78980933]
[1772205159066,20.8772062,82.735,82.666,22.12819887]
[1772205159473,10.8768,82.734,82.67,22.12819887]
[1772205159970,22.25285691,82.749,82.67,22.12819887]
[1772205160371,22.25285691,82.749,82.672,20.79982173]
[1772205160864,22.25285691,82.749,82.685,20.79982173]
[1772205160865,10.8751,82.747,82.685,20.79982173]
[1772205161969,10.8751,82.747,82.688,20.79982173]
[1772205162767,10.8737,82.757,82.69,20.79982173]
[1772205163073,10.8737,82.757,82.691,20.79982173]
[1772205163574,36.15,82.781,82.702,20.79982173]
[1772205163871,36.15,82.772,82.702,20.79982173]
[1772205164168,22.25285691,82.769,82.702,20.79982173]
[1772205164670,22.25285691,82.769,82.67,6.35830843]
[1772205164671,22.25285691,82.789,82.712,20.79982173]
[1772205165873,10.8702,82.785,82.729,10.8774]
[1772205166673,10.8711,82.777,82.728,20.79982173]
[1772205167074,22.25285691,82.789,82.728,20.79982173]
[1772205167471,22.25285691,82.789,82.737,10.8763]
[1772205167672,22.25285691,82.808,82.738,20.79982173]
[1772205168977,10.8677,82.804,82.747,10.875]
[1772205169480,10.8686,82.796,82.747,10.875]
[1772205169672,22.25285691,82.795,82.73,20.79982173]
[1772205170273,10.8696,82.789,82.73,20.79982173]
[1772205171879,10.8696,82.789,82.737,10.8763]
[1772205172082,10.8705,82.782,82.738,20.79982173]
[1772205172281,22.25285691,82.795,82.738,20.79982173]
[1772205173786,22.25285691,82.795,82.721,20.79982173]
[1772205174580,22.25285691,82.774,82.721,20.79982173]
[1772205175186,22.25285691,82.791,82.721,20.79982173]
[1772205175781,10.8708,82.78,82.736,10.8765]
[1772205177089,10.8717,82.773,82.728,20.79982173]
[1772205177788,10.8705,82.782,82.731,20.79982173]
[1772205178188,22.25285691,82.808,82.731,20.79982173]
[1772205178590,22.25285691,82.808,82.741,20.79982173]
[1772205178982,22.25285691,82.808,82.754,20.79982173]
[1772205179984,10.8694,82.791,82.754,20.79982173]
[1772205180496,10.8684,82.798,82.754,20.79982173]
[1772205180686,22.25285691,82.808,82.738,20.79982173]
[1772205181287,10.8695,82.79,82.747,10.875]
[1772205181484,22.25285691,82.808,82.738,20.79982173]
[1772205181887,10.8714,82.775,82.738,20.79982173]
[1772205182483,22.25285691,82.793,82.738,20.79982173]
[1772205182888,22.25285691,82.793,82.711,20.79982173]
[1772205183284,10.8721,82.77,82.731,20.79982173]
[1772205183688,22.25285691,82.789,82.691,20.79982173]
[1772205184198,10.874,82.756,82.713,20.79982173]
[1772205185095,22.25285691,82.773,82.713,20.79982173]
[1772205185486,10.8739,82.756,82.713,20.79982173]
[1772205186293,10.8749,82.749,82.713,20.79982173]
[1772205189294,36.15,82.786,82.724,20.79982173]
[1772205189694,10.8709,82.779,82.738,31.67602173]
[1772205189898,10.8709,82.779,82.739,20.79982173]
[1772205190094,22.25285691,82.79,82.739,20.79982173]
[1772205190299,10.8726,82.766,82.723,32.7948198]
[1772205190494,22.25285691,82.79,82.724,21.9167198]
[1772205190694,10.8712,82.777,82.726,10.8778]
[1772205190895,22.25285691,82.79,82.726,32.7945198]
[1772205191804,10.872,82.771,82.726,32.7945198]
[1772205192301,10.872,82.771,82.726,21.9167198]
[1772205192702,10.871,82.778,82.726,21.9167198]
[1772205193604,10.8702,82.785,82.726,21.9167198]
[1772205193805,22.74201709,82.806,82.726,21.9167198]
[1772205194103,10.8683,82.799,82.752,10.8743]
[1772205194302,10.8683,82.799,82.753,21.9167198]
[1772205195904,10.8683,82.799,82.755,10.874]
[1772205196404,22.74201709,82.798,82.755,10.874]
[1772205196610,33.61071709,82.796,82.737,21.9167198]
[1772205197504,22.74201709,82.796,82.737,21.9167198]
[1772205198211,10.8703,82.784,82.739,10.8761]
[1772205198416,10.8703,82.784,82.686,29.49070662]
[1772205198417,22.74201709,82.795,82.721,21.9167198]
[1772205199610,22.74201709,82.776,82.721,21.9167198]
[1772205200711,22.74201709,82.776,82.732,10.877]
[1772205201305,10.8714,82.775,82.732,10.877]
[1772205202006,22.74201709,82.776,82.721,21.9167198]
[1772205202007,10.8723,82.768,82.725,10.8779]
[1772205202309,22.74201709,82.775,82.701,21.9167198]
[1772205202814,10.874,82.756,82.717,10.879]
[1772205203413,10.874,82.756,82.71,10.8799]
[1772205204113,10.8748,82.75,82.703,10.8808]
[1772205204809,22.74201709,82.761,82.715,10.8792]
[1772205206208,22.74201709,82.778,82.722,21.9167198]
[1772205206814,10.8725,82.767,82.722,21.9167198]
[1772205208514,22.74201709,82.778,82.722,21.9167198]
[1772205209617,22.74201709,82.793,82.738,10.8762]
[1772205209823,22.74201709,82.793,82.736,21.9167198]
[1772205210023,22.74201709,82.809,82.736,21.9167198]
[1772205210225,10.8693,82.791,82.749,10.8747]
[1772205210825,10.8684,82.798,82.749,10.8747]
[1772205211223,10.8684,82.798,82.757,10.8737]
[1772205211526,10.8674,82.806,82.757,10.8737]
[1772205212025,10.8681,82.8,82.757,10.8737]
[1772205213525,10.8689,82.794,82.75,32.7913198]
[1772205213725,22.74201709,82.795,82.735,21.9167198]
[1772205214225,10.8692,82.792,82.75,10.8747]
[1772205215332,22.74201709,82.795,82.735,21.9167198]
[1772205215628,36.15,82.809,82.704,21.9167198]
[1772205215629,22.74201709,82.785,82.704,21.9167198]
[1772205216726,10.8738,82.757,82.714,21.9167198]
[1772205216927,22.74201709,82.765,82.714,21.9167198]
[1772205217127,22.74201709,82.765,82.691,21.9167198]
[1772205217631,22.74201709,82.765,82.705,10.8805]
[1772205217829,22.74201709,82.765,82.691,21.9167198]
[1772205218334,10.8754,82.745,82.703,10.8808]
[1772205219032,10.8744,82.753,82.703,32.65484567]
[1772205220328,10.8744,82.753,82.704,21.56791634]
[1772205220832,20.94916374,82.781,82.707,21.56791634]
[1772205221630,10.8729,82.764,82.714,21.56791634]
[1772205222226,10.8729,82.764,82.718,21.56791634]
[1772205222634,10.8719,82.771,82.718,21.56791634]
[1772205223633,6.36746535,82.79,82.703,21.56791634]
[1772205223634,20.94916374,82.779,82.703,21.56791634]
[1772205224131,20.94916374,82.779,82.705,21.56791634]
[1772205224335,20.94916374,82.779,82.711,21.56791634]
[1772205225537,20.94916374,82.794,82.732,21.56791634]
[1772205225934,10.8699,82.787,82.743,10.8755]
[1772205227237,20.94916374,82.794,82.743,10.8755]
[1772205227535,20.94916374,82.794,82.732,21.56791634]
[1772205228937,10.871,82.778,82.734,10.8767]
[1772205229836,20.94916374,82.794,82.732,21.56791634]
[1772205230539,10.8708,82.78,82.733,10.8768]
[1772205230734,20.94916374,82.794,82.732,21.56791634]
[1772205231639,20.94916374,82.786,82.732,21.56791634]
[1772205231837,20.94916374,82.786,82.717,21.56791634]
[1772205232443,10.8731,82.762,82.724,10.878]
[1772205232737,10.8731,82.762,82.717,21.56791634]
[1772205232939,20.94916374,82.762,82.717,21.56791634]
[1772205233740,10.874,82.756,82.717,21.56791634]
[1772205234133,10.8755,82.744,82.717,21.56791634]
[1772205234337,20.94916374,82.762,82.7,21.56791634]
[1772205234845,20.94916374,82.762,82.68,6.36746535]
[1772205234846,20.94916374,82.762,82.702,21.56791634]
[1772205236139,20.94916374,82.762,82.704,21.56791634]
[1772205237035,10.8753,82.746,82.704,21.56791634]
[1772205237247,20.94916374,82.745,82.69,21.56791634]
[1772205238342,10.8776,82.728,82.69,21.56791634]
[1772205238745,10.8763,82.738,82.69,21.56791634]
[1772205239741,20.94916374,82.76,82.692,21.56791634]
[1772205240451,10.8744,82.753,82.708,21.56791634]
[1772205240846,10.8744,82.753,82.709,10.88]
[1772205241048,10.8744,82.753,82.71,21.56791634]
[1772205241254,31.82256374,82.76,82.71,21.56791634]
[1772205241444,20.94916374,82.759,82.692,21.56791634]
[1772205242247,42.63746535,82.77,82.677,21.56791634]
[1772205242248,20.94916374,82.746,82.677,21.56791634]
[1772205242644,20.94916374,82.71,82.662,10.8861]
[1772205243046,20.94916374,82.71,82.649,21.56791634]
[1772205243247,10.8802,82.708,82.668,10.8854]
[1772205243442,20.94916374,82.71,82.649,21.56791634]
[1772205244952,20.94916374,82.71,82.668,10.8854]
[1772205245350,20.94916374,82.71,82.649,21.56791634]
[1772205245552,20.94916374,82.696,82.644,10.8885]
[1772205247055,31.83146374,82.693,82.644,10.8885]
[1772205247257,20.94916374,82.692,82.638,21.56791634]
[1772205247556,20.94916374,82.687,82.636,10.8896]
[1772205248153,20.94916374,82.684,82.628,10.8906]
[1772205248351,20.94916374,82.684,82.623,21.56791634]
[1772205248652,10.8844,82.676,82.623,21.56791634]
[1772205248857,21.7578,82.718,82.568,299.0]
[1772205248858,20.94916374,82.675,82.6,21.56791634]
[1772205249654,20.94916374,82.672,82.611,21.56791634]
[1772205250156,20.94916374,82.672,82.619,10.8919]
[1772205251447,22.2159992,82.688,82.625,21.42994368]
[1772205251954,22.2159992,82.704,82.65,10.8878]
[1772205252156,22.2159992,82.704,82.644,21.42994368]
[1772205252653,22.2159992,82.704,82.649,10.8879]
[1772205252856,22.2159992,82.704,82.644,21.42994368]
[1772205253654,10.881,82.703,82.654,10.8872]
[1772205253861,22.2159992,82.704,82.654,10.8872]
[1772205254058,22.2159992,82.729,82.655,21.42994368]
[1772205254258,22.2159992,82.719,82.662,10.8862]
[1772205254455,22.2159992,82.738,82.663,21.42994368]
[1772205255363,6.36746535,82.75,82.663,21.42994368]
[1772205255364,22.2159992,82.736,82.663,21.42994368]
[1772205255753,10.8779,82.726,82.663,21.42994368]
[1772205255958,22.2159992,82.736,82.663,21.42994368]
[1772205257063,10.8768,82.734,82.678,10.8841]
[1772205257265,22.2159992,82.757,82.679,21.42994368]
[1772205258862,10.8753,82.745,82.691,10.8823]
[1772205259164,22.2159992,82.744,82.679,21.42994368]
[1772205260660,22.2159992,82.744,82.66,6.36746535]
[1772205260863,22.2159992,82.723,82.665,10.8857]
[1772205261166,22.2159992,82.723,82.661,21.42994368]
[1772205261363,22.2159992,82.699,82.647,10.8882]
[1772205262169,22.2159992,82.697,82.611,21.42994368]
[1772205262768,22.2159992,82.697,82.635,21.42994368]
[1772205263364,22.2159992,82.714,82.635,21.42994368]
[1772205263869,10.8807,82.705,82.635,21.42994368]
[1772205265068,10.8807,82.705,82.651,10.8876]
[1772205265668,10.8796,82.713,82.655,21.42994368]
[1772205266867,10.8796,82.713,82.659,10.8865]
[1772205267168,10.8805,82.706,82.659,10.8865]
[1772205267767,22.2159992,82.698,82.651,10.8876]
[1772205268070,22.2159992,82.698,82.638,21.42994368]
[1772205268866,10.8827,82.689,82.642,10.8888]
[1772205271764,22.2159992,82.698,82.658,10.8867]
[1772205273163,10.8818,82.697,82.651,10.8877]
[1772205273770,10.8807,82.704,82.659,10.8866]
[1772205273961,22.2159992,82.715,82.658,21.42994368]
[1772205274669,10.8797,82.712,82.666,10.8857]
[1772205274873,10.8797,82.712,82.658,21.42994368]
[1772205274874,22.2159992,82.712,82.658,21.42994368]
[1772205275475,22.2159992,82.712,82.65,10.8877]
[1772205276375,10.8816,82.698,82.65,10.8877]
[1772205276876,10.8821,82.694,82.65,10.8877]
[1772205277372,180.34228709,82.753,82.65,10.8877]
[1772205277373,22.2159992,82.719,82.651,21.42994368]
[1772205277775,22.2159992,82.739,82.682,10.8835]
[1772205278173,22.2159992,82.739,82.682,21.42994368]
[1772205278573,10.8762,82.738,82.682,21.42994368]
[1772205279371,10.8771,82.732,82.682,21.42994368]
[1772205279578,19.98234574,82.732,82.682,21.42994368]
[1772205283780,10.8772,82.731,82.682,21.42994368]
[1772205284475,19.98234574,82.732,82.685,20.79807945]
[1772205284689,21.62647331,82.747,82.685,20.79807945]
[1772205285683,10.8761,82.74,82.686,20.79807945]
[1772205285887,21.62647331,82.739,82.686,20.79807945]
[1772205286180,21.62647331,82.762,82.691,20.79807945]
[1772205286388,10.8732,82.761,82.714,20.79807945]
[1772205286881,10.8709,82.779,82.723,20.79807945]
[1772205287078,21.62647331,82.782,82.723,20.79807945]
[1772205287683,10.8728,82.765,82.723,20.79807945]
[1772205288279,10.8743,82.753,82.708,20.79807945]
[1772205289483,6.37871036,82.79,82.71,20.79807945]
[1772205289484,10.8732,82.762,82.71,20.79807945]
[1772205290886,32.49837331,82.771,82.714,20.79807945]
[1772205291084,21.62647331,82.77,82.714,20.79807945]
[1772205291980,10.8727,82.765,82.716,20.79807945]
[1772205292788,21.62647331,82.77,82.717,31.67707945]
[1772205293288,21.62647331,82.77,82.718,20.79807945]
[1772205293687,21.62647331,82.77,82.72,10.8785]
[1772205294183,21.62647331,82.768,82.706,20.79807945]
[1772205295984,10.873,82.763,82.715,10.8792]
[1772205296784,10.8736,82.759,82.715,10.8792]
[1772205297189,21.62647331,82.762,82.724,10.878]
[1772205298588,10.8735,82.76,82.717,10.879]
[1772205298788,21.62647331,82.759,82.706,20.79807945]
[1772205300183,21.62647331,82.757,82.706,20.79807945]
[1772205300790,10.874,82.756,82.714,10.8794]
[1772205301296,21.62647331,82.774,82.736,10.8765]
[1772205302387,21.62647331,82.794,82.737,20.79807945]
[1772205303695,21.62647331,82.794,82.753,10.8742]
[1772205304293,21.62647331,82.825,82.751,20.79807945]
[1772205305193,21.62647331,82.822,82.766,20.79807945]
[1772205305401,21.62647331,82.822,82.751,20.79807945]
[1772205306192,21.62647331,82.822,82.775,10.8713]
[1772205306391,21.62647331,82.837,82.771,20.79807945]
[1772205306594,6.37871036,82.87,82.771,20.79807945]
[1772205306595,21.62647331,82.852,82.771,20.79807945]
[1772205307594,21.62647331,82.852,82.793,20.79807945]
[1772205308197,21.62647331,82.866,82.793,20.79807945]
[1772205308502,21.62647331,82.886,82.811,20.79807945]
[1772205308691,324.48573217,82.887,82.807,10.8671]
[1772205308692,21.62647331,82.869,82.807,10.8671]
[1772205309296,21.62647331,82.864,82.816,10.8659]
[1772205309891,21.62647331,82.864,82.816,31.66397945]
[1772205310098,19.30339576,82.879,82.823,20.57898198]
[1772205311499,19.30339576,82.879,82.834,10.8635]
[1772205311701,19.30339576,82.879,82.823,20.57898198]
[1772205312100,19.30339576,82.879,82.833,10.8636]
[1772205312299,19.30339576,82.879,82.81,6.37871036]
[1772205312300,19.30339576,82.879,82.81,26.95769234]
[1772205312499,19.30339576,82.879,82.81,20.57898198]
[1772205313104,19.30339576,82.877,82.823,10.865]
[1772205313798,19.30339576,82.875,82.811,10.8666]
[1772205313998,19.30339576,82.875,82.81,20.57898198]
[1772205314395,19.30339576,82.856,82.79,20.57898198]
[1772205314598,19.30339576,82.856,82.761,20.57898198]
[1772205314799,10.8631,82.839,82.778,10.8709]
[1772205314994,19.30339576,82.838,82.778,20.57898198]
[1772205315502,19.30339576,82.838,82.786,10.8698]
[1772205315702,19.30339576,82.838,82.76,6.37871036]
[1772205315703,19.30339576,82.838,82.761,20.57898198]
[1772205316304,19.30339576,82.827,82.761,20.57898198]
[1772205316602,19.30339576,82.827,82.741,20.57898198]
[1772205316806,19.30339576,82.806,82.744,20.57898198]
[1772205318003,19.30339576,82.806,82.747,20.57898198]
[1772205320302,19.30339576,82.806,82.74,6.37871036]
[1772205320609,19.30339576,82.806,82.729,20.57898198]
[1772205321406,6.36664332,82.81,82.729,20.57898198]
[1772205321407,30.17369576,82.783,82.729,20.57898198]
[1772205321809,19.30339576,82.783,82.729,20.57898198]
[1772205322300,168.943,82.858,82.71,68.36664332]
[1772205322301,19.30339576,82.829,82.735,20.57898198]
[1772205322501,19.30339576,82.829,82.751,20.57898198]
[1772205322697,19.30339576,82.829,82.764,20.57898198]
[1772205323300,19.30339576,82.819,82.75,31.45348198]
[1772205323606,19.30339576,82.857,82.771,20.57898198]
[1772205323805,19.30339576,82.857,82.79,20.57898198]
[1772205324204,19.30339576,82.835,82.771,20.57898198]
[1772205324822,19.30339576,82.831,82.771,20.57898198]
[1772205325611,19.30339576,82.829,82.771,20.57898198]
[1772205326709,19.30339576,82.829,82.756,20.57898198]
[1772205327106,36.27,82.849,82.75,6.36664332]
[1772205327107,19.30339576,82.827,82.769,31.45108198]
[1772205327309,19.30339576,82.827,82.77,20.57898198]
[1772205327611,19.30339576,82.857,82.77,20.57898198]
[1772205328814,19.30339576,82.829,82.754,20.57898198]
[1772205329215,36.27,82.828,82.754,20.57898198]
[1772205329418,19.30339576,82.799,82.741,10.8757]
[1772205330017,19.30339576,82.843,82.799,10.8682]
[1772205330212,19.30339576,82.843,82.781,20.57898198]
[1772205330713,168.8527,82.902,82.76,6.36664332]
[1772205330714,19.30339576,82.839,82.779,10.8708]
[1772205331116,19.30339576,82.863,82.833,10.8637]
[1772205331415,2.10023175,82.903,82.811,20.57898198]
[1772205331607,6.36664332,82.91,82.811,20.57898198]
[1772205331809,10.8547,82.902,82.842,10.8625]
[1772205332217,10.8561,82.892,82.83,10.8641]
[1772205332409,6.36664332,82.89,82.811,20.57898198]
[1772205333116,10.8579,82.878,82.82,10.8655]
[1772205333318,19.30339576,82.889,82.781,20.57898198]
[1772205333522,19.30339576,82.907,82.821,20.57898198]
[1772205333715,19.30339576,82.907,82.841,20.57898198]
[1772205334721,19.30339576,82.907,82.811,20.57898198]
[1772205335113,19.30339576,82.905,82.816,20.57898198]
[1772205335721,19.30339576,82.888,82.816,20.57898198]
[1772205337519,19.30339576,82.887,82.816,20.57898198]
[1772205338227,19.30339576,82.887,82.82,20.57898198]
[1772205339928,19.30339576,82.887,82.804,19.75896707]
[1772205340121,11.13760584,82.936,82.804,19.75896707]
[1772205340323,11.13760584,82.936,82.77,62.0]
[1772205340324,18.6176018,82.922,82.851,20.14218218]
[1772205341221,2.09940185,82.933,82.853,20.14218218]
[1772205341422,18.6176018,82.942,82.891,20.14218218]
[1772205342124,18.6176018,82.942,82.877,10.8579]
[1772205342527,18.6176018,82.942,82.887,10.8567]
[1772205342722,18.6176018,82.942,82.888,20.14218218]
[1772205343434,18.6176018,82.942,82.89,20.14218218]
[1772205344324,18.6176018,82.969,82.89,20.14218218]
[1772205344733,18.6176018,82.969,82.911,20.14218218]
[1772205344937,18.6176018,82.988,82.911,20.14218218]
[1772205345328,2.09796534,82.993,82.921,20.14218218]
[1772205345529,6.534e-05,82.993,82.951,20.14218218]
[1772205345834,18.6176018,83.03,82.924,20.14218218]
[1772205346039,18.6176018,83.03,82.889,168.8779]
[1772205346040,18.6176018,83.029,82.931,20.14218218]
[1772205346341,18.6176018,83.007,82.931,20.14218218]
[1772205347030,18.6176018,83.003,82.933,10.8507]
[1772205347833,10.843,82.992,82.931,20.14218218]
[1772205348140,18.6176018,82.991,82.921,10.8522]
[1772205348738,18.6176018,82.988,82.913,20.14218218]
[1772205349334,18.6176018,82.988,82.9,6.36664332]
[1772205349633,18.6176018,82.967,82.895,20.14218218]
[1772205350034,18.6176018,82.953,82.895,20.14218218]
[1772205350235,18.6176018,82.953,82.88,6.36664332]
[1772205350444,18.6176018,82.953,82.877,20.14218218]
[1772205350943,18.6176018,82.945,82.875,10.8582]
[1772205351631,18.6176018,82.945,82.876,20.14218218]
[1772205352036,18.6176018,82.945,82.871,10.8588]
[1772205352037,10.8507,82.933,82.871,10.8588]
[1772205352234,18.6176018,82.932,82.871,10.8588]
[1772205352638,18.6176018,82.932,82.868,20.14218218]
[1772205353738,29.4686018,82.931,82.868,20.14218218]
[1772205353939,18.6176018,82.93,82.868,20.14218218]
[1772205354939,10.8512,82.929,82.868,20.14218218]
[1772205355446,10.8526,82.919,82.868,20.14218218]
[1772205355643,18.6176018,82.93,82.85,26.5088255]
[1772205355843,18.6176018,82.93,82.851,20.14218218]
[1772205356040,18.6176018,82.95,82.872,20.14218218]
[1772205357743,18.6176018,82.938,82.872,20.14218218]
[1772205357944,18.6176018,82.938,82.86,6.36664332]
[1772205358146,18.6176018,82.933,82.864,10.8597]
[1772205358352,18.6176018,82.933,82.864,20.14218218]
[1772205359151,18.6176018,82.925,82.864,20.14218218]
[1772205359448,18.6176018,82.946,82.865,20.14218218]
[1772205359644,18.6176018,82.946,82.891,10.856]
[1772205359851,18.6176018,82.984,82.901,20.14218218]
[1772205360348,18.6176018,82.984,82.9,6.36664332]
[1772205360349,18.6176018,82.984,82.91,20.14218218]
[1772205360953,18.6176018,82.959,82.871,20.14218218]
[1772205361350,5.42378512,82.978,82.851,20.14218218]
[1772205361351,18.6176018,82.939,82.851,20.14218218]
[1772205361952,18.6176018,82.907,82.849,10.8616]
[1772205362549,18.6176018,82.905,82.839,10.8629]